{"text_format":"1","workbook":"xlsx","n_sheets":11,"sheets":["Indice","EDU-CONT Y PERM","INGRESOS","TALENTO HUMANO","BIENES - INSUMOS","SERVICIOS","CONVENIOS","ACREDITACIÓN","PAA","LISTAS ","Cálculo PAC"],"not_rendered":{"charts":0,"images":8,"macros":1,"external_links":1,"defined_names":21,"comments":8,"pivot_tables":0},"unopened":[],"bounds":{"document_bytes":16777216,"sheet_cells":100000,"rows_first":2000,"rows_last":500,"rows_between":2000,"halvings":0,"cell_chars":16384,"cell_head_chars":4096},"cells_cut":0,"cells_raw":0,"read":"part_too_large","date_system":"1900"}

{"sheet":"Indice","index":0,"n_rows":23,"n_cols":5,"rows_kept":23,"cut":false,"hidden":false,"merged":[]}
[]
[]
[]
[]
[]
[]
[]
[null,null,null,null,"Contenido"]
[]
[null,null,null,null,"1. EDEFO-01 Presupuesto Educación continuada y permanente"]
[null,null,null,null,"2. EDEFO-02 Presupuesto de Ingresos"]
[null,null,null,null,"3. EDEFO-11 Presupuesto Aprendices y Honorarios"]
[null,null,null,null,"4. EDEFO-03 Presupuesto Bienes e Insumos"]
[null,null,null,null,"5. EDEFO-04 Presupuesto de Servicios"]
[null,null,null,null,"6. EDEFO-10 Presupuesto de Convenios"]
[null,null,null,null,"7. EDEFO-22 Presupuesto Plan de Mejoramiento - Acreditación Institucional"]
[null,null,null,null,"8. EDEFO-13 Presupuesto Plan de Acción Anual"]
[]
[]
[]
[]
[]
[null,"Versión. 1.0"]

{"sheet":"EDU-CONT Y PERM","index":1,"n_rows":23,"n_cols":21,"rows_kept":23,"cut":false,"hidden":false,"merged":[[4,9,4,10]]}
[]
[]
[]
[]
[null,"                                   VIGENCIA:",null,null,null,null,null,null,null,"Logística evento",null,null,null,0.4,null,0.35,null,null,null,null,0.2]
[null,"Facultad / Programa / Dependencias","Modalidad","Nombre del evento","Fecha de realización","Valor honorarios","Transporte","Gastos Generales","Gastos de alimentación","Detalle","Valor","Inscritos","Total costos directos","Costos indirectos (40%)","Total costos directos e indirectos","Utilidad\n(35%)","Costo  global","Punto de Equilibrio","Vr. Inscrpción = CG/PE","Vr. Inscripción particulares","Estudiantes, docentes, afiliados Aseuma (20%)"]
[null,null,null,null,null,null,null,null,null,null,null,null,{"$f":"IF(L7=\"\",\"\",(SUM(F7,G7,H7,I7,K7)))","v":""},{"$f":"IFERROR(M7*$N$5,\"\")","v":""},{"$f":"IF(L7=\"\",\"\",(SUM(M7:N7)))","v":""},{"$f":"IFERROR(O7*$P$5,\"\")","v":""},{"$f":"IF(L7=\"\",\"\",(SUM(O7:P7)))","v":""},{"$f":"IF(L7=\"\",\"\",(ROUND(L7/2,0)))","v":""},{"$f":"IFERROR(Q7/R7,\"\")","v":""},{"$f":"IFERROR(ROUND(S7,-3),\"\")","v":""},{"$f":"IFERROR(ROUND(T7-(T7*$U$5),-3),\"\")","v":""}]
[null,null,null,null,null,null,null,null,null,null,null,null,{"$f":"IF(L8=\"\",\"\",(SUM(F8,G8,H8,I8,K8)))","v":""},"","","","","","","",""]
[null,null,null,null,null,null,null,null,null,null,null,null,{"$f":"IF(L9=\"\",\"\",(SUM(F9,G9,H9,I9,K9)))","v":""},"","","","","","","",""]
[null,null,null,null,null,null,null,null,null,null,null,null,"","","","","","","","",""]
[null,null,null,null,null,null,null,null,null,null,null,null,"","","","","","","","",""]
[null,null,null,null,null,null,null,null,null,null,null,null,"","","","","","","","",""]
[null,null,null,null,null,null,null,null,null,null,null,null,"","","","","","","","",""]
[null,null,null,null,null,null,null,null,null,null,null,null,"","","","","","","","",""]
[null,null,null,null,null,null,null,null,null,null,null,null,"","","","","","","","",""]
[null,null,null,null,null,null,null,null,null,null,null,null,"","","","","","","","",""]
[null,null,null,null,null,null,null,null,null,null,null,null,"","","","","","","","",""]
[null,null,null,null,null,null,null,null,null,null,null,null,"","","","","","","","",""]
[null,null,null,null,null,null,null,null,null,null,null,null,"","","","","","",{"$f":"IFERROR(Q19/R19,\"\")","v":""},"",""]
[null,null,null,null,null,null,null,null,null,null,null,null,"","",{"$f":"IF(L20=\"\",\"\",(SUM(M20:N20)))","v":""},"",{"$f":"IF(L20=\"\",\"\",(SUM(O20:P20)))","v":""},{"$f":"IF(L20=\"\",\"\",(ROUND(L20/2,0)))","v":""},{"$f":"IFERROR(Q20/R20,\"\")","v":""},"",""]
[null,null,null,null,null,null,null,null,null,null,null,null,"","","","","","","","",""]
[null,null,null,null,null,null,null,null,null,null,null,null,"","","","","","","","",""]
[null,"Totales",null,null,null,null,null,null,null,null,null,null,{"$f":"IF(M7=\"\",\"\",SUM(M7:M22))","v":""},{"$f":"IF(N7=\"\",\"\",SUM(N7:N22))","v":""},"","",""]

{"sheet":"INGRESOS","index":2,"n_rows":17,"n_cols":9,"rows_kept":17,"cut":false,"hidden":false,"merged":[[21,5,21,6],[22,5,22,6]]}
[]
[]
[]
[]
[null,"                              VIGENCIA:"]
[null,"PROGRAMA Y/O DEPENDENCIA","ÁREA / SERVICIO","PERIODO O FRECUENCIA","MES INICIAL","CANTIDAD","VALOR UNITARIO","TOTAL"]
[null,null,null,null,null,null,null,{"$f":"IF(G7=\"\",\"\",F7*G7*I7)","v":""},{"$f":"VLOOKUP(E7,'Cálculo PAC'!$B$4:$I$15,MATCH(D7,'Cálculo PAC'!$B$3:$I$3,0),0)","v":{"$error":"#N/A"}}]
[null,null,null,null,null,null,null,{"$f":"IF(G8=\"\",\"\",F8*G8*I8)","v":""},{"$f":"VLOOKUP(E8,'Cálculo PAC'!$B$4:$I$15,MATCH(D8,'Cálculo PAC'!$B$3:$I$3,0),0)","v":{"$error":"#N/A"}}]
[null,null,null,null,null,null,null,{"$f":"IF(G9=\"\",\"\",F9*G9*I9)","v":""},{"$f":"VLOOKUP(E9,'Cálculo PAC'!$B$4:$I$15,MATCH(D9,'Cálculo PAC'!$B$3:$I$3,0),0)","v":{"$error":"#N/A"}}]
[null,null,null,null,null,null,null,{"$f":"IF(G10=\"\",\"\",F10*G10*I10)","v":""},{"$f":"VLOOKUP(E10,'Cálculo PAC'!$B$4:$I$15,MATCH(D10,'Cálculo PAC'!$B$3:$I$3,0),0)","v":{"$error":"#N/A"}}]
[null,null,null,null,null,null,null,{"$f":"IF(G11=\"\",\"\",F11*G11*I11)","v":""},{"$f":"VLOOKUP(E11,'Cálculo PAC'!$B$4:$I$15,MATCH(D11,'Cálculo PAC'!$B$3:$I$3,0),0)","v":{"$error":"#N/A"}}]
[null,null,null,null,null,null,null,{"$f":"IF(G12=\"\",\"\",F12*G12)","v":""},{"$f":"VLOOKUP(E12,'Cálculo PAC'!$B$4:$I$15,MATCH(D12,'Cálculo PAC'!$B$3:$I$3,0),0)","v":{"$error":"#N/A"}}]
[null,null,null,null,null,null,null,"",{"$f":"VLOOKUP(E13,'Cálculo PAC'!$B$4:$I$15,MATCH(D13,'Cálculo PAC'!$B$3:$I$3,0),0)","v":{"$error":"#N/A"}}]
[null,null,null,null,null,null,null,"",{"$f":"VLOOKUP(E14,'Cálculo PAC'!$B$4:$I$15,MATCH(D14,'Cálculo PAC'!$B$3:$I$3,0),0)","v":{"$error":"#N/A"}}]
[null,null,null,null,null,null,null,{"$f":"IF(G15=\"\",\"\",F15*G15)","v":""},{"$f":"VLOOKUP(E15,'Cálculo PAC'!$B$4:$I$15,MATCH(D15,'Cálculo PAC'!$B$3:$I$3,0),0)","v":{"$error":"#N/A"}}]
[null,null,null,null,null,null,null,"",{"$f":"VLOOKUP(E16,'Cálculo PAC'!$B$4:$I$15,MATCH(D16,'Cálculo PAC'!$B$3:$I$3,0),0)","v":{"$error":"#N/A"}}]
[null,null,null,null,null,null,"TOTALES",{"$f":"SUM(H7:H16)","v":0}]

{"sheet":"TALENTO HUMANO","index":3,"n_rows":20,"n_cols":13,"rows_kept":20,"cut":false,"hidden":false,"merged":[]}
[]
[]
[]
[]
[null,"                                    VIGENCIA:"]
[null,"FACULTAD / PROGRAMA / DEPENDENCIA","TIPO DE NECESIDAD","JUSTIFICACIÓN","PERIODO O FRECUENCIA","MES INICIAL","DEDICACIÓN","CANTIDAD","VALOR UNITARIO HONORARIOS","TOTAL ANUAL"]
[null,null,null,null,null,null,null,null,null,{"$f":"IF(H7=\"\",\"\",IF(C7=\"Aprendices\",K7*L7,H7*L7))","v":""},{"$f":"IF(G7=\"Medio Tiempo\",H7/2,IF(G7=\"Tiempo Completo\",H7,\"0\"))","v":"0"},{"$f":"VLOOKUP(F7,'Cálculo PAC'!$B$4:$I$15,MATCH(E7,'Cálculo PAC'!$B$3:$I$3,0),0)","v":{"$error":"#N/A"}},{"$f":"+K7*L7","v":{"$error":"#N/A"}}]
[null,null,null,null,null,null,null,null,null,"",{"$f":"IF(G8=\"Medio Tiempo\",H8/2,IF(G8=\"Tiempo Completo\",H8,\"0\"))","v":"0"},{"$f":"VLOOKUP(F8,'Cálculo PAC'!$B$4:$I$15,MATCH(E8,'Cálculo PAC'!$B$3:$I$3,0),0)","v":{"$error":"#N/A"}},{"$f":"+K8*L8","v":{"$error":"#N/A"}}]
[null,null,null,null,null,null,null,null,null,"",{"$f":"IF(G9=\"Medio Tiempo\",H9/2,IF(G9=\"Tiempo Completo\",H9,\"0\"))","v":"0"},{"$f":"VLOOKUP(F9,'Cálculo PAC'!$B$4:$I$15,MATCH(E9,'Cálculo PAC'!$B$3:$I$3,0),0)","v":{"$error":"#N/A"}},{"$f":"+K9*L9","v":{"$error":"#N/A"}}]
[null,null,null,null,null,null,null,null,null,"",{"$f":"IF(G10=\"Medio Tiempo\",H10/2,IF(G10=\"Tiempo Completo\",H10,\"0\"))","v":"0"},{"$f":"VLOOKUP(F10,'Cálculo PAC'!$B$4:$I$15,MATCH(E10,'Cálculo PAC'!$B$3:$I$3,0),0)","v":{"$error":"#N/A"}},{"$f":"+K10*L10","v":{"$error":"#N/A"}}]
[null,null,null,null,null,null,null,null,null,"","0",{"$f":"VLOOKUP(F11,'Cálculo PAC'!$B$4:$I$15,MATCH(E11,'Cálculo PAC'!$B$3:$I$3,0),0)","v":{"$error":"#N/A"}},{"$error":"#N/A"}]
[null,null,null,null,null,null,null,null,null,"","0",{"$f":"VLOOKUP(F12,'Cálculo PAC'!$B$4:$I$15,MATCH(E12,'Cálculo PAC'!$B$3:$I$3,0),0)","v":{"$error":"#N/A"}},{"$error":"#N/A"}]
[null,null,null,null,null,null,null,null,null,"","0",{"$f":"VLOOKUP(F13,'Cálculo PAC'!$B$4:$I$15,MATCH(E13,'Cálculo PAC'!$B$3:$I$3,0),0)","v":{"$error":"#N/A"}},{"$error":"#N/A"}]
[null,null,null,null,null,null,null,null,null,"","0",{"$f":"VLOOKUP(F14,'Cálculo PAC'!$B$4:$I$15,MATCH(E14,'Cálculo PAC'!$B$3:$I$3,0),0)","v":{"$error":"#N/A"}},{"$error":"#N/A"}]
[null,null,null,null,null,null,null,null,"Total honorarios",{"$f":"SUMIF(C7:C14,\"Honorarios\",J7:J14)","v":0}]
[null,null,null,null,null,null,null,null,"Total aprendices",{"$f":"SUMIF(C7:C14,\"Aprendices\",J7:J14)","v":0}]
[null,"NOTA: "]
[]
[null,"SI EL PRACTICANTE (APRENDIZ) ES TIEMPO COMPLETO EL APOYO ECONÓMICO CORRESPONDE A 1 SMMLV"]
[null,"SI EL PRACTICANTE (APRENDIZ) ES MEDIO TIEMPO  EL APOYO ECONÓMICO CORRESPONDE A 1/2 SMMLV"]

{"sheet":"BIENES - INSUMOS","index":4,"n_rows":19,"n_cols":13,"rows_kept":19,"cut":false,"hidden":false,"merged":[]}
[]
[]
[]
[]
[null,"                                VIGENCIA:"]
[null,"FACULTAD / PROGRAMA / DEPENDENCIA","BIEN / INSUMO REQUERIDO","DESCRIPCIÓN ","TIPO DE SOLICITUD","JUSTIFICACIÓN","PROYECTO DE INVERSIÓN","PERIODO O FRECUENCIA","MES INICIAL","CANTIDAD","VALOR UNITARIO","VALOR TOTAL"]
[null,null,null,null,null,null,null,null,null,null,null,{"$f":"IF(J7=\"\",\"\",J7*K7*'BIENES - INSUMOS'!M7)","v":""},{"$f":"VLOOKUP('BIENES - INSUMOS'!I7,'Cálculo PAC'!$B$4:$I$15,MATCH('BIENES - INSUMOS'!H7,'Cálculo PAC'!$B$3:$I$3,0),0)","v":{"$error":"#N/A"}}]
[null,null,null,null,null,null,null,null,null,null,null,{"$f":"IF(J8=\"\",\"\",J8*K8*'BIENES - INSUMOS'!M8)","v":""},{"$f":"VLOOKUP('BIENES - INSUMOS'!I8,'Cálculo PAC'!$B$4:$I$15,MATCH('BIENES - INSUMOS'!H8,'Cálculo PAC'!$B$3:$I$3,0),0)","v":{"$error":"#N/A"}}]
[null,null,null,null,null,null,null,null,null,null,null,{"$f":"IF(J9=\"\",\"\",J9*K9*'BIENES - INSUMOS'!M9)","v":""},{"$f":"VLOOKUP('BIENES - INSUMOS'!I9,'Cálculo PAC'!$B$4:$I$15,MATCH('BIENES - INSUMOS'!H9,'Cálculo PAC'!$B$3:$I$3,0),0)","v":{"$error":"#N/A"}}]
[null,null,null,null,null,null,null,null,null,null,null,{"$f":"IF(J10=\"\",\"\",J10*K10*'BIENES - INSUMOS'!M10)","v":""},{"$f":"VLOOKUP('BIENES - INSUMOS'!I10,'Cálculo PAC'!$B$4:$I$15,MATCH('BIENES - INSUMOS'!H10,'Cálculo PAC'!$B$3:$I$3,0),0)","v":{"$error":"#N/A"}}]
[null,null,null,null,null,null,null,null,null,null,null,{"$f":"IF(J11=\"\",\"\",J11*K11*'BIENES - INSUMOS'!M11)","v":""},{"$f":"VLOOKUP('BIENES - INSUMOS'!I11,'Cálculo PAC'!$B$4:$I$15,MATCH('BIENES - INSUMOS'!H11,'Cálculo PAC'!$B$3:$I$3,0),0)","v":{"$error":"#N/A"}}]
[null,null,null,null,null,null,null,null,null,null,null,{"$f":"IF(J12=\"\",\"\",J12*K12*'BIENES - INSUMOS'!M12)","v":""},{"$f":"VLOOKUP('BIENES - INSUMOS'!I12,'Cálculo PAC'!$B$4:$I$15,MATCH('BIENES - INSUMOS'!H12,'Cálculo PAC'!$B$3:$I$3,0),0)","v":{"$error":"#N/A"}}]
[null,null,null,null,null,null,null,null,null,null,null,{"$f":"IF(J13=\"\",\"\",J13*K13*'BIENES - INSUMOS'!M13)","v":""},{"$f":"VLOOKUP('BIENES - INSUMOS'!I13,'Cálculo PAC'!$B$4:$I$15,MATCH('BIENES - INSUMOS'!H13,'Cálculo PAC'!$B$3:$I$3,0),0)","v":{"$error":"#N/A"}}]
[null,null,null,null,null,null,null,null,null,null,null,{"$f":"IF(J14=\"\",\"\",J14*K14*'BIENES - INSUMOS'!M14)","v":""},{"$f":"VLOOKUP('BIENES - INSUMOS'!I14,'Cálculo PAC'!$B$4:$I$15,MATCH('BIENES - INSUMOS'!H14,'Cálculo PAC'!$B$3:$I$3,0),0)","v":{"$error":"#N/A"}}]
[null,null,null,null,null,null,null,null,null,null,null,{"$f":"IF(J15=\"\",\"\",J15*K15*'BIENES - INSUMOS'!M15)","v":""},{"$f":"VLOOKUP('BIENES - INSUMOS'!I15,'Cálculo PAC'!$B$4:$I$15,MATCH('BIENES - INSUMOS'!H15,'Cálculo PAC'!$B$3:$I$3,0),0)","v":{"$error":"#N/A"}}]
[null,null,null,null,null,null,null,null,null,null,null,{"$f":"IF(J16=\"\",\"\",J16*K16*'BIENES - INSUMOS'!M16)","v":""},{"$f":"VLOOKUP('BIENES - INSUMOS'!I16,'Cálculo PAC'!$B$4:$I$15,MATCH('BIENES - INSUMOS'!H16,'Cálculo PAC'!$B$3:$I$3,0),0)","v":{"$error":"#N/A"}}]
[null,null,null,null,null,null,null,null,null,null,null,{"$f":"IF(J17=\"\",\"\",J17*K17*'BIENES - INSUMOS'!M17)","v":""},{"$f":"VLOOKUP('BIENES - INSUMOS'!I17,'Cálculo PAC'!$B$4:$I$15,MATCH('BIENES - INSUMOS'!H17,'Cálculo PAC'!$B$3:$I$3,0),0)","v":{"$error":"#N/A"}}]
[null,null,null,null,null,null,null,null,null,null,null,{"$f":"IF(J18=\"\",\"\",J18*K18*'BIENES - INSUMOS'!M18)","v":""},{"$f":"VLOOKUP('BIENES - INSUMOS'!I18,'Cálculo PAC'!$B$4:$I$15,MATCH('BIENES - INSUMOS'!H18,'Cálculo PAC'!$B$3:$I$3,0),0)","v":{"$error":"#N/A"}}]
[null,null,null,null,null,null,null,null,null,null,"Totales",{"$f":"IF(L7=\"\",\"\",SUM(L7:L18))","v":""}]

{"sheet":"SERVICIOS","index":5,"n_rows":18,"n_cols":12,"rows_kept":18,"cut":false,"hidden":false,"merged":[]}
[]
[]
[]
[]
[null,"                               VIGENCIA:"]
[null,"FACULTAD / PROGRAMA / DEPENDENCIA","ACTIVIDAD","TIPO DE SERVICIO","DESCRIPCIÓN ","JUSTIFICACIÓN","PERIODO O FRECUENCIA","MES INICIAL","CANTIDAD","VALOR UNITARIO","VALOR TOTAL"]
[null,null,null,null,null,null,null,null,null,null,{"$f":"IF(I7=\"\",\"\",I7*J7*L7)","v":""},{"$f":"VLOOKUP(H7,'Cálculo PAC'!$B$4:$I$15,MATCH(G7,'Cálculo PAC'!$B$3:$I$3,0),0)","v":{"$error":"#N/A"}}]
[null,null,null,null,null,null,null,null,null,null,{"$f":"IF(I8=\"\",\"\",I8*J8*L8)","v":""},{"$f":"VLOOKUP(H8,'Cálculo PAC'!$B$4:$I$15,MATCH(G8,'Cálculo PAC'!$B$3:$I$3,0),0)","v":{"$error":"#N/A"}}]
[null,null,null,null,null,null,null,null,null,null,{"$f":"IF(I9=\"\",\"\",I9*J9*L9)","v":""},{"$f":"VLOOKUP(H9,'Cálculo PAC'!$B$4:$I$15,MATCH(G9,'Cálculo PAC'!$B$3:$I$3,0),0)","v":{"$error":"#N/A"}}]
[null,null,null,null,null,null,null,null,null,null,{"$f":"IF(I10=\"\",\"\",I10*J10*L10)","v":""},{"$f":"VLOOKUP(H10,'Cálculo PAC'!$B$4:$I$15,MATCH(G10,'Cálculo PAC'!$B$3:$I$3,0),0)","v":{"$error":"#N/A"}}]
[null,null,null,null,null,null,null,null,null,null,{"$f":"IF(I11=\"\",\"\",I11*J11)","v":""},{"$f":"VLOOKUP(H11,'Cálculo PAC'!$B$4:$I$15,MATCH(G11,'Cálculo PAC'!$B$3:$I$3,0),0)","v":{"$error":"#N/A"}}]
[null,null,null,null,null,null,null,null,null,null,{"$f":"IF(I12=\"\",\"\",I12*J12)","v":""},{"$f":"VLOOKUP(H12,'Cálculo PAC'!$B$4:$I$15,MATCH(G12,'Cálculo PAC'!$B$3:$I$3,0),0)","v":{"$error":"#N/A"}}]
[null,null,null,null,null,null,null,null,null,null,{"$f":"IF(I13=\"\",\"\",I13*J13)","v":""},{"$f":"VLOOKUP(H13,'Cálculo PAC'!$B$4:$I$15,MATCH(G13,'Cálculo PAC'!$B$3:$I$3,0),0)","v":{"$error":"#N/A"}}]
[null,null,null,null,null,null,null,null,null,null,"",{"$f":"VLOOKUP(H14,'Cálculo PAC'!$B$4:$I$15,MATCH(G14,'Cálculo PAC'!$B$3:$I$3,0),0)","v":{"$error":"#N/A"}}]
[null,null,null,null,null,null,null,null,null,null,"",{"$f":"VLOOKUP(H15,'Cálculo PAC'!$B$4:$I$15,MATCH(G15,'Cálculo PAC'!$B$3:$I$3,0),0)","v":{"$error":"#N/A"}}]
[null,null,null,null,null,null,null,null,null,null,"",{"$f":"VLOOKUP(H16,'Cálculo PAC'!$B$4:$I$15,MATCH(G16,'Cálculo PAC'!$B$3:$I$3,0),0)","v":{"$error":"#N/A"}}]
[null,null,null,null,null,null,null,null,null,null,"",{"$f":"VLOOKUP(H17,'Cálculo PAC'!$B$4:$I$15,MATCH(G17,'Cálculo PAC'!$B$3:$I$3,0),0)","v":{"$error":"#N/A"}}]
[null,null,null,null,null,null,null,null,null,"Totales",{"$f":"IF(K7=\"\",\"\",SUM(K7:K17))","v":""}]

{"sheet":"CONVENIOS","index":6,"n_rows":26,"n_cols":11,"rows_kept":26,"cut":false,"hidden":false,"merged":[]}
[]
[]
[]
[]
[null,"                                 VIGENCIA:"]
[null,"FACULTAD / PROGRAMA / DEPENDENCIA","NOMBRE CONVENIO ","ENTIDAD","PERIODO O FRECUENCIA","MES INICIAL","CANTIDAD","COSTO UNITARIO","COSTO TOTAL","RETORNO PROYECTADO"]
[null,null,null,null,null,null,null,null,{"$f":"IF(G7=\"\",\"\",G7*H7*K7)","v":""},null,{"$f":"VLOOKUP(F7,'Cálculo PAC'!$B$4:$I$15,MATCH(E7,'Cálculo PAC'!$B$3:$I$3,0),0)","v":{"$error":"#N/A"}}]
[null,null,null,null,null,null,null,null,{"$f":"IF(G8=\"\",\"\",G8*H8*K8)","v":""},null,{"$f":"VLOOKUP(F8,'Cálculo PAC'!$B$4:$I$15,MATCH(E8,'Cálculo PAC'!$B$3:$I$3,0),0)","v":{"$error":"#N/A"}}]
[null,null,null,null,null,null,null,null,{"$f":"IF(G9=\"\",\"\",G9*H9*K9)","v":""},null,{"$f":"VLOOKUP(F9,'Cálculo PAC'!$B$4:$I$15,MATCH(E9,'Cálculo PAC'!$B$3:$I$3,0),0)","v":{"$error":"#N/A"}}]
[null,null,null,null,null,null,null,null,"",null,{"$f":"VLOOKUP(F10,'Cálculo PAC'!$B$4:$I$15,MATCH(E10,'Cálculo PAC'!$B$3:$I$3,0),0)","v":{"$error":"#N/A"}}]
[null,null,null,null,null,null,null,null,"",null,{"$f":"VLOOKUP(F11,'Cálculo PAC'!$B$4:$I$15,MATCH(E11,'Cálculo PAC'!$B$3:$I$3,0),0)","v":{"$error":"#N/A"}}]
[null,null,null,null,null,null,null,null,"",null,{"$f":"VLOOKUP(F12,'Cálculo PAC'!$B$4:$I$15,MATCH(E12,'Cálculo PAC'!$B$3:$I$3,0),0)","v":{"$error":"#N/A"}}]
[null,null,null,null,null,null,null,null,"",null,{"$f":"VLOOKUP(F13,'Cálculo PAC'!$B$4:$I$15,MATCH(E13,'Cálculo PAC'!$B$3:$I$3,0),0)","v":{"$error":"#N/A"}}]
[null,null,null,null,null,null,null,null,"",null,{"$f":"VLOOKUP(F14,'Cálculo PAC'!$B$4:$I$15,MATCH(E14,'Cálculo PAC'!$B$3:$I$3,0),0)","v":{"$error":"#N/A"}}]
[null,null,null,null,null,null,null,null,"",null,{"$f":"VLOOKUP(F15,'Cálculo PAC'!$B$4:$I$15,MATCH(E15,'Cálculo PAC'!$B$3:$I$3,0),0)","v":{"$error":"#N/A"}}]
[null,null,null,null,null,null,null,null,"",null,{"$f":"VLOOKUP(F16,'Cálculo PAC'!$B$4:$I$15,MATCH(E16,'Cálculo PAC'!$B$3:$I$3,0),0)","v":{"$error":"#N/A"}}]
[null,null,null,null,null,null,null,null,"",null,{"$f":"VLOOKUP(F17,'Cálculo PAC'!$B$4:$I$15,MATCH(E17,'Cálculo PAC'!$B$3:$I$3,0),0)","v":{"$error":"#N/A"}}]
[null,null,null,null,null,null,null,null,"",null,{"$f":"VLOOKUP(F18,'Cálculo PAC'!$B$4:$I$15,MATCH(E18,'Cálculo PAC'!$B$3:$I$3,0),0)","v":{"$error":"#N/A"}}]
[null,null,null,null,null,null,null,null,"",null,{"$f":"VLOOKUP(F19,'Cálculo PAC'!$B$4:$I$15,MATCH(E19,'Cálculo PAC'!$B$3:$I$3,0),0)","v":{"$error":"#N/A"}}]
[null,null,null,null,null,null,null,null,"",null,{"$f":"VLOOKUP(F20,'Cálculo PAC'!$B$4:$I$15,MATCH(E20,'Cálculo PAC'!$B$3:$I$3,0),0)","v":{"$error":"#N/A"}}]
[null,"TOTAL ",null,null,null,null,null,null,{"$f":"SUM(I7:I20)","v":0},{"$f":"SUM(J7:J20)","v":0}]
[]
[]
[]
[]
[null," "]

{"sheet":"ACREDITACIÓN","index":7,"n_rows":0,"n_cols":0,"rows_kept":0,"cut":false,"hidden":false,"merged":[],"read":"part_too_large"}

{"sheet":"PAA","index":8,"n_rows":21,"n_cols":13,"rows_kept":21,"cut":false,"hidden":false,"merged":[]}
[]
[]
[]
[]
[null,"                                VIGENCIA:"]
[null,"FACULTAD / PROGRAMA / DEPENDENCIA","LÍNEA PRIORITARIA DE GESTIÓN","INICIATIVA ESTRATÉGICA","ACCIÓN DEL PLAN ANUAL","DETALLE","PERIODO O FRECUENCIA","MES INICIAL","UNIDAD ","CANTIDAD","VALOR UNITARIO","VALOR TOTAL"]
[null,null,null,null,null,null,null,null,null,null,null,{"$f":"IF(J7=\"\",\"\",(K7*J7*M7))","v":""},{"$f":"VLOOKUP(H7,'Cálculo PAC'!$B$4:$I$15,MATCH(G7,'Cálculo PAC'!$B$3:$I$3,0),0)","v":{"$error":"#N/A"}}]
[null,null,null,null,null,null,null,null,null,null,null,{"$f":"IF(J8=\"\",\"\",(K8*J8*M8))","v":""},{"$f":"VLOOKUP(H8,'Cálculo PAC'!$B$4:$I$15,MATCH(G8,'Cálculo PAC'!$B$3:$I$3,0),0)","v":{"$error":"#N/A"}}]
[null,null,null,null,null,null,null,null,null,null,null,{"$f":"IF(J9=\"\",\"\",(K9*J9*M9))","v":""},{"$f":"VLOOKUP(H9,'Cálculo PAC'!$B$4:$I$15,MATCH(G9,'Cálculo PAC'!$B$3:$I$3,0),0)","v":{"$error":"#N/A"}}]
[null,null,null,null,null,null,null,null,null,null,null,{"$f":"IF(J10=\"\",\"\",(K10*J10*M10))","v":""},{"$f":"VLOOKUP(H10,'Cálculo PAC'!$B$4:$I$15,MATCH(G10,'Cálculo PAC'!$B$3:$I$3,0),0)","v":{"$error":"#N/A"}}]
[null,null,null,null,null,null,null,null,null,null,null,{"$f":"IF(J11=\"\",\"\",(K11*J11*M11))","v":""},{"$f":"VLOOKUP(H11,'Cálculo PAC'!$B$4:$I$15,MATCH(G11,'Cálculo PAC'!$B$3:$I$3,0),0)","v":{"$error":"#N/A"}}]
[null,null,null,null,null,null,null,null,null,null,null,"",{"$f":"VLOOKUP(H12,'Cálculo PAC'!$B$4:$I$15,MATCH(G12,'Cálculo PAC'!$B$3:$I$3,0),0)","v":{"$error":"#N/A"}}]
[null,null,null,null,null,null,null,null,null,null,null,"",{"$f":"VLOOKUP(H13,'Cálculo PAC'!$B$4:$I$15,MATCH(G13,'Cálculo PAC'!$B$3:$I$3,0),0)","v":{"$error":"#N/A"}}]
[null,null,null,null,null,null,null,null,null,null,null,"",{"$f":"VLOOKUP(H14,'Cálculo PAC'!$B$4:$I$15,MATCH(G14,'Cálculo PAC'!$B$3:$I$3,0),0)","v":{"$error":"#N/A"}}]
[null,null,null,null,null,null,null,null,null,null,null,"",{"$f":"VLOOKUP(H15,'Cálculo PAC'!$B$4:$I$15,MATCH(G15,'Cálculo PAC'!$B$3:$I$3,0),0)","v":{"$error":"#N/A"}}]
[null,null,null,null,null,null,null,null,null,null,null,"",{"$f":"VLOOKUP(H16,'Cálculo PAC'!$B$4:$I$15,MATCH(G16,'Cálculo PAC'!$B$3:$I$3,0),0)","v":{"$error":"#N/A"}}]
[null,null,null,null,null,null,null,null,null,null,null,"",{"$f":"VLOOKUP(H17,'Cálculo PAC'!$B$4:$I$15,MATCH(G17,'Cálculo PAC'!$B$3:$I$3,0),0)","v":{"$error":"#N/A"}}]
[null,"TOTAL PRESUPUESTO SOLICITADO:",null,null,null,null,null,null,null,null,"Totales",{"$f":"IF(L7=\"\",\"\",SUM(L7:L17))","v":""}]
[]
[null,"NOTA 1. Los recursos contemplados en el formato de presupuesto del Plan de Acción Anual  (EDEFO -13) no deberán estar incluidos en ninguno otro presupuesto que el área presente, en aras de evitar duplicidad de información y sobre estimación del gasto."]
[null,"NOTA 2.  Para el presupuesto de bienes y servicios se deberá tener en cuenta los impuestos que apliquen a su adquisición y si la Universidad cuenta con la capacidad para la instalación y puesta en marcha de los mismos."]

{"sheet":"LISTAS ","index":9,"n_rows":58,"n_cols":14,"rows_kept":58,"cut":false,"hidden":false,"merged":[]}
[null,"PRESUPUESTO",null,"FACULTADES",null,"FACULTAD / PROGRAMA / DEPENDENCIA",null,"PERÍODO",null,"DEPENDENCIAS",null,null,null,"PROYECTOS DE INVERSIÓN"]
[null,"Aprendices",null,"Facultad Administración y Economía",null,"Administración de Empresas Comerciales - Bogotá",null,"Mensual",null,"Área de Salud",null,null,null,"Adecuación y mantenimiento Infraestructura Física"]
[null,"Honorarios",null,"Facultad Ciencias de la Salud",null,"Administración de Empresas Comerciales - Funza",null,"Bimensual",null,"Cursos de Extensión",null,null,null,"Fortalecimiento físico de la Sede Plenosol en perspectivas de la consolidación de la oferta académica para la región del Alto Magdalena y de los servicios de bienestar universitario."]
[null,null,null,"Facultad Ciencias Sociales",null,"Administración de Empresas Comerciales -Tintal",null,"Trimestral",null,null,null,null,null,"Fortalecimiento de equipamiento de Laboratorios para el programa de Bacteriología"]
[null,null,null,"Facultad de Derecho",null,"Admisiones, Registro y Control",null,"Cuatrimestral",null,null,null,null,null,"Fortalecimiento de los recursos bibliográficos como apoyo a los procesos de formación."]
[null,null,null,"Facultad de Ingeniería y Arquitectura",null,"Área de Salud",null,"Semestral",null,null,null,null,null,"Proyecto Centro de recursos para el aprendizaje y la investigación - CRAI"]
[null,null,null,null,null,"Bacteriología y Laboratorio Clinico",null,"Anual",null,null,null,null,null,"Fortalecimiento del SISGECC"]
[null,null,null,null,null,"Biblioteca",null,"Única vez",null,null,null,null,null,"Fortalecimiento de las condiciones para la acreditación de alta calidad de los programas académicos e institucionales."]
[null,null,null,null,null,"Construcción y Gestión en Arquitectura",null,"MES",null,"ÁREA / SERVICIO",null,null,null,"Fortalecimiento de la Internacionalización."]
[null,null,null,null,null,"Cursos de Extensión",null,"Enero",null,"Artes Manuales",null,null,null,"Fortalecimiento de la plataforma tecnológica institucional"]
[null,null,null,null,null,"Derecho",null,"Febrero",null,"Belleza y Cosmetología",null,null,null,"Fortalecimiento de la comunicación, visibilización y promoción institucional."]
[null,null,null,null,null,"Derecho - Funza",null,"Marzo",null,"Cocina",null,null,null,"Fortalecimiento del Sistema de Innovación Educativa Apoyada en las TIC."]
[null,null,null,null,null,"Derecho - Tintal",null,"Abril",null,"Corte y Confección",null,null,null,"Fortalecimiento del Programa de Desarrollo Profesoral."]
[null,"BIEN Y/O INSUMO",null,"PROGRAMAS ACADÉMICOS",null,"Diseño Digital y Multimedia",null,"Mayo",null,"Labores",null,null,null,"Formación y capacitación para el desarrollo de competencias del personal administrativo"]
[null,"Equipos de cómputo",null,"Administración de Empresas Comerciales - Bogotá",null,"División de Promoción y Relaciones Interinstitucionales",null,"Junio",null,"Pintura",null,null,null,"Formación y capacitación para el desarrollo de competencias del personal administrativo"]
[null,"Recursos audiovisuales",null,"Administración de Empresas Comerciales - Funza",null,"División de Recursos Humanos",null,"Julio",null,"Música",null,null,null,"Fortalecimiento del proceso misional de investigación"]
[null,"Bienes y equipos diferentes a informàticos y audiovisuales",null,"Administración de Empresas Comerciales -Tintal",null,"División de Servicios Administrativos y Recursos Físicos",null,"Agosto",null,"Exámenes de laboratorio",null,null,null,"Bilingüismo"]
[null,"Insumos",null,"Bacteriología y Laboratorio Clínico",null,"División Financiera",null,"Septiembre",null,"Odontología",null,null,null,"Fortalecimiento de la relación con los Egresados"]
[null,null,null,"Construcción y Gestión en Arquitectura",null,"División Medio Universitario",null,"Octubre",null,"Otro",null,null,null,"Fortalecimiento de la Gestión Documental Institucional"]
[null,null,null,"Derecho",null,"Economía",null,"Noviembre",null,null,null,null,null,"Proyecto Nueva Planta Física"]
[null,null,null,"Derecho - Funza",null,"Especialización en Edificación Sostenible",null,"Diciembre",null,"Aprendices",null,null,null,"Fortalecimiento de la permanencia de los estudiantes de la Universidad Colegio Mayor de Cundinamarca"]
[null,null,null,"Derecho - Tintal",null,"Especialización en Gerencia en Seguridad y Salud en el Trabajo",null,null,null,"Medio Tiempo",null,null,null,"Sello Editorial"]
[null,null,null,"Diseño Digital y Multimedia",null,"Especialización en Promoción en Salud y Desarrollo Humano",null,null,null,"Tiempo Completo",null,null,null,"Otro no relacionado"]
[null,"TIPO DE SOLICITUD",null,"Economía",null,"Especialización Gerencia de la Calidad en Salud"]
[null,"Nuevo",null,"Especialización en Edificación Sostenible",null,"Especialización Tecnológica en Metodología BIM para el desarrollo de Proyectos de la Edificación",null,null,null,"Honorarios"]
[null,"Reemplazo",null,"Especialización en Gerencia en Seguridad y Salud en el Trabajo",null,"Facultad Administración y Economía",null,null,null,"Honorarios"]
[null,null,null,"Especialización en Promoción en Salud y Desarrollo Humano",null,"Facultad Ciencias de la Salud"]
[null,null,null,"Especialización Gerencia de la Calidad en Salud",null,"Facultad Ciencias Sociales"]
[null,null,null,"Especialización Tecnológica en Metodología BIM para el desarrollo de Proyectos de la Edificación",null,"Facultad de Derecho"]
[null,null,null,"Maestría en Desarrollo Humano",null,"Facultad de Ingeniería y Arquitectura"]
[null,"MODALIDAD",null,"Maestría en Microbiología",null,"Maestría en Desarrollo Humano"]
[null,"Educación continuada",null,"Programa Ciencias Básicas",null,"Maestría en Microbiología"]
[null,"Educación permanente",null,"Tecnología en Asistencia Gerencial Distancia",null,"Oficina de Autoevaluación y Acreditación"]
[null,null,null,"Tecnología en Asistencia Gerencial Presencial - Bogotá",null,"Oficina de Control Interno"]
[null,null,null,"Tecnología en Asistencia Gerencial Presencial - Funza",null,"Oficina de Investigaciones"]
[null,null,null,"Tecnología en Delineantes de Arquitectura e Ingeniería",null,"Oficina de Planeación, Sistemas y Desarrollo"]
[null,null,null,"Tecnología en Gestión y Ejecución de Construcciones",null,"Oficina de Proyección Social"]
[null,"SERVICIO REQUERIDO",null,"Trabajo Social",null,"Oficina Jurídica"]
[null,"Mantenimiento equipos de cómputo",null,"Turismo",null,"Programa Ciencias Básicas"]
[null,"Mantenimiento de equipos",null,null,null,"Rectoría"]
[null,"Mantenimiento planta física",null,null,null,"Recursos Educativos"]
[null,"Salidas pedagógicas",null,null,null,"Secretaría General"]
[null,"Proyecciòn talento humano",null,null,null,"Tecnología en Asistencia Gerencial Distancia"]
[null,null,null,null,null,"Tecnología en Asistencia Gerencial Presencial - Bogotá"]
[null,"TIPO DE SERVICIO",null,null,null,"Tecnología en Asistencia Gerencial Presencial - Funza"]
[null,"Mantenimiento Preventivo ",null,null,null,"Tecnología en Delineantes de Arquitectura e Ingeniería"]
[null,"Mantenimiento Correctivo",null,null,null,"Tecnología en Gestión y Ejecución de Construcciones"]
[null,"Mantenimiento Áreas",null,null,null,"Trabajo Social"]
[null,"Otro servicio no relacionado",null,null,null,"Turismo"]
[null,null,null,null,null,"Vicerrectoría Académica"]
[null,"RECURSO NECESARIO",null,null,null,"Vicerrectoría Administrativa"]
[null,"Personas (horas dedicadas)"]
[null,"Insumos"]
[null,"Otros gastos asociados"]
[]
[null,"UNIDAD DE MEDIDA"]
[null,"Horas"]
[null,"Global"]

{"sheet":"Cálculo PAC","index":10,"n_rows":15,"n_cols":11,"rows_kept":15,"cut":false,"hidden":true,"merged":[]}
[null,null,null,null,null,null,null,null,null,null,"Plan anual mensualizado de Caja"]
[null,null,1,2,3,4,6,12]
[null,null,"Mensual","Bimensual","Trimestral","Cuatrimestral","Semestral","Anual","Única vez"]
[null,"Enero",12,{"$f":"+$C4/D$2","v":6},4,3,2,1,1]
[null,"Febrero",11,5.5,3.6666666666666665,2.75,1.8333333333333333,0.91666666666666663,1]
[null,"Marzo",10,5,3.3333333333333335,2.5,1.6666666666666667,0.83333333333333337,1]
[null,"Abril",9,4.5,3,2.25,1.5,0.75,1]
[null,"Mayo",8,4,2.6666666666666665,2,1.3333333333333333,0.66666666666666663,1]
[null,"Junio",7,3.5,2.3333333333333335,1.75,1.1666666666666667,0.58333333333333337,1]
[null,"Julio",6,3,2,1.5,1,0.5,1]
[null,"Agosto",5,2.5,1.6666666666666667,1.25,0.83333333333333337,0.41666666666666669,1]
[null,"Septiembre",4,2,1.3333333333333333,1,0.66666666666666663,0.33333333333333331,1]
[null,"Octubre",3,1.5,1,0.75,0.5,0.25,1]
[null,"Noviembre",2,1,0.66666666666666663,0.5,0.33333333333333331,0.16666666666666666,1]
[null,"Diciembre",1,0.5,0.33333333333333331,0.25,0.16666666666666666,8.3333333333333329E-2,1]